Workbook

Sheet Simulation
G11: EXAMPLE DISTRIBUTION
A12: Asset_name | B12: COA_Cmdty | D12: Date | E12: Time | F12: Bench | G12: Sim | H12: Results
A13: Asset_px | B13: 112.42 | D13: 2012-08-14 | E13: 0 | F13: 80 | G13: =$B$13 -> 112.42 | H13: 0
A14: Drift | B14: 0 | D14: 2012-09-14 | E14: =E13+$B$16 -> 0.05 | F14: 80 | G14: =G13*EXP(($B$17-0.5*$B$15*$B$15)*$B$16+$B$15*SQRT($B$16)*NORMSINV(RAND())) -> 109.4984541 | H14: 0
A15: Volatility | B15: 0.13 | D15: 2012-10-14 | E15: =E14+$B$16 -> 0.1 | F15: 80 | G15: =G14*EXP(($B$17-0.5*$B$15*$B$15)*$B$16+$B$15*SQRT($B$16)*NORMSINV(RAND())) -> 110.3770687 | H15: 0
A16: Timestep | B16: 0.05 | D16: 2012-11-14 | E16: =E15+$B$16 -> 0.15 | F16: 80 | G16: =G15*EXP(($B$17-0.5*$B$15*$B$15)*$B$16+$B$15*SQRT($B$16)*NORMSINV(RAND())) -> 114.6448429 | H16: 0
A17: Int. Rate | B17: 0.02 | D17: 2012-12-14 | E17: =E16+$B$16 -> 0.2 | F17: 80 | G17: =G16*EXP(($B$17-0.5*$B$15*$B$15)*$B$16+$B$15*SQRT($B$16)*NORMSINV(RAND())) -> 116.0791558 | H17: 0
D18: 2013-01-14 | E18: =E17+$B$16 -> 0.25 | F18: 80 | G18: =G17*EXP(($B$17-0.5*$B$15*$B$15)*$B$16+$B$15*SQRT($B$16)*NORMSINV(RAND())) -> 115.9603325 | H18: 0
A19: Simulations | B19: 41 | D19: 2013-02-14 | E19: =E18+$B$16 -> 0.3 | F19: 80 | G19: =G18*EXP(($B$17-0.5*$B$15*$B$15)*$B$16+$B$15*SQRT($B$16)*NORMSINV(RAND())) -> 114.0262209 | H19: 0
B20: 1 | D20: 2013-03-14 | E20: =E19+$B$16 -> 0.35 | F20: 80 | G20: =G19*EXP(($B$17-0.5*$B$15*$B$15)*$B$16+$B$15*SQRT($B$16)*NORMSINV(RAND())) -> 115.5009545 | H20: 0
D21: 2013-04-14 | E21: =E20+$B$16 -> 0.4 | F21: 80 | G21: =G20*EXP(($B$17-0.5*$B$15*$B$15)*$B$16+$B$15*SQRT($B$16)*NORMSINV(RAND())) -> 115.0041849 | H21: 0
D22: 2013-05-14 | E22: =E21+$B$16 -> 0.45 | F22: 80 | G22: =G21*EXP(($B$17-0.5*$B$15*$B$15)*$B$16+$B$15*SQRT($B$16)*NORMSINV(RAND())) -> 114.5673131 | H22: 0
D23: 2013-06-14 | E23: =E22+$B$16 -> 0.5 | F23: 80 | G23: =G22*EXP(($B$17-0.5*$B$15*$B$15)*$B$16+$B$15*SQRT($B$16)*NORMSINV(RAND())) -> 111.978445 | H23: 0
D24: 2013-07-14 | E24: =E23+$B$16 -> 0.55 | F24: 80 | G24: =G23*EXP(($B$17-0.5*$B$15*$B$15)*$B$16+$B$15*SQRT($B$16)*NORMSINV(RAND())) -> 107.8312883 | H24: 0
D25: 2013-08-14 | E25: =E24+$B$16 -> 0.6 | F25: 80 | G25: =G24*EXP(($B$17-0.5*$B$15*$B$15)*$B$16+$B$15*SQRT($B$16)*NORMSINV(RAND())) -> 108.6146233 | H25: 0
D26: 2013-09-14 | E26: =E25+$B$16 -> 0.65 | F26: 80 | G26: =G25*EXP(($B$17-0.5*$B$15*$B$15)*$B$16+$B$15*SQRT($B$16)*NORMSINV(RAND())) -> 108.0718237 | H26: 0
D27: 2013-10-14 | E27: =E26+$B$16 -> 0.7 | F27: 80 | G27: =G26*EXP(($B$17-0.5*$B$15*$B$15)*$B$16+$B$15*SQRT($B$16)*NORMSINV(RAND())) -> 109.1416402 | H27: 0
D28: 2013-11-14 | E28: =E27+$B$16 -> 0.75 | F28: 80 | G28: =G27*EXP(($B$17-0.5*$B$15*$B$15)*$B$16+$B$15*SQRT($B$16)*NORMSINV(RAND())) -> 114.5768013 | H28: 0
D29: 2013-12-14 | E29: =E28+$B$16 -> 0.8 | F29: 80 | G29: =G28*EXP(($B$17-0.5*$B$15*$B$15)*$B$16+$B$15*SQRT($B$16)*NORMSINV(RAND())) -> 120.4986368 | H29: 9
D30: 2014-01-14 | E30: =E29+$B$16 -> 0.85 | F30: 80 | G30: =G29*EXP(($B$17-0.5*$B$15*$B$15)*$B$16+$B$15*SQRT($B$16)*NORMSINV(RAND())) -> 125.2961661 | H30: 0
D31: 2014-02-14 | E31: =E30+$B$16 -> 0.9 | F31: 80 | G31: =G30*EXP(($B$17-0.5*$B$15*$B$15)*$B$16+$B$15*SQRT($B$16)*NORMSINV(RAND())) -> 128.5725846 | H31: 0
D32: 2014-03-14 | E32: =E31+$B$16 -> 0.95 | F32: 80 | G32: =G31*EXP(($B$17-0.5*$B$15*$B$15)*$B$16+$B$15*SQRT($B$16)*NORMSINV(RAND())) -> 128.7180186 | H32: 10
D33: 2014-04-14 | E33: =E32+$B$16 -> 1 | F33: 80 | G33: =G32*EXP(($B$17-0.5*$B$15*$B$15)*$B$16+$B$15*SQRT($B$16)*NORMSINV(RAND())) -> 125.9478358 | H33: 0
D34: 2014-05-14 | E34: =E33+$B$16 -> 1.05 | F34: 80 | G34: =G33*EXP(($B$17-0.5*$B$15*$B$15)*$B$16+$B$15*SQRT($B$16)*NORMSINV(RAND())) -> 128.4520033 | H34: 0
D35: 2014-06-14 | E35: =E34+$B$16 -> 1.1 | F35: 80 | G35: =G34*EXP(($B$17-0.5*$B$15*$B$15)*$B$16+$B$15*SQRT($B$16)*NORMSINV(RAND())) -> 130.7586131 | H35: 0
D36: 2014-07-14 | E36: =E35+$B$16 -> 1.15 | F36: 80 | G36: =G35*EXP(($B$17-0.5*$B$15*$B$15)*$B$16+$B$15*SQRT($B$16)*NORMSINV(RAND())) -> 129.6910426 | H36: 0
D37: 2014-08-14 | E37: =E36+$B$16 -> 1.2 | F37: 80 | G37: =G36*EXP(($B$17-0.5*$B$15*$B$15)*$B$16+$B$15*SQRT($B$16)*NORMSINV(RAND())) -> 124.2905565 | H37: 0
D38: 2014-09-14 | E38: =E37+$B$16 -> 1.25 | F38: 80 | G38: =G37*EXP(($B$17-0.5*$B$15*$B$15)*$B$16+$B$15*SQRT($B$16)*NORMSINV(RAND())) -> 128.7945269 | H38: 0
D39: 2014-10-14 | E39: =E38+$B$16 -> 1.3 | F39: 80 | G39: =G38*EXP(($B$17-0.5*$B$15*$B$15)*$B$16+$B$15*SQRT($B$16)*NORMSINV(RAND())) -> 135.9668979 | H39: 0
D40: 2014-11-14 | E40: =E39+$B$16 -> 1.35 | F40: 80 | G40: =G39*EXP(($B$17-0.5*$B$15*$B$15)*$B$16+$B$15*SQRT($B$16)*NORMSINV(RAND())) -> 137.5799778 | H40: 0
D41: 2014-12-14 | E41: =E40+$B$16 -> 1.4 | F41: 80 | G41: =G40*EXP(($B$17-0.5*$B$15*$B$15)*$B$16+$B$15*SQRT($B$16)*NORMSINV(RAND())) -> 134.5546913 | H41: 0
D42: 2015-01-14 | E42: =E41+$B$16 -> 1.45 | F42: 80 | G42: =G41*EXP(($B$17-0.5*$B$15*$B$15)*$B$16+$B$15*SQRT($B$16)*NORMSINV(RAND())) -> 136.0720548 | H42: 0
D43: 2015-02-14 | E43: =E42+$B$16 -> 1.5 | F43: 80 | G43: =G42*EXP(($B$17-0.5*$B$15*$B$15)*$B$16+$B$15*SQRT($B$16)*NORMSINV(RAND())) -> 138.5130178 | H43: 0
D44: 2015-03-14 | E44: =E43+$B$16 -> 1.55 | F44: 80 | G44: =G43*EXP(($B$17-0.5*$B$15*$B$15)*$B$16+$B$15*SQRT($B$16)*NORMSINV(RAND())) -> 132.0385238 | H44: 0
D45: 2015-04-14 | E45: =E44+$B$16 -> 1.6 | F45: 80 | G45: =G44*EXP(($B$17-0.5*$B$15*$B$15)*$B$16+$B$15*SQRT($B$16)*NORMSINV(RAND())) -> 127.2139524 | H45: 0
D46: 2015-05-14 | E46: =E45+$B$16 -> 1.65 | F46: 80 | G46: =G45*EXP(($B$17-0.5*$B$15*$B$15)*$B$16+$B$15*SQRT($B$16)*NORMSINV(RAND())) -> 125.1384669 | H46: 0
D47: 2015-06-14 | E47: =E46+$B$16 -> 1.7 | F47: 80 | G47: =G46*EXP(($B$17-0.5*$B$15*$B$15)*$B$16+$B$15*SQRT($B$16)*NORMSINV(RAND())) -> 128.8037527 | H47: 0
D48: 2015-07-14 | E48: =E47+$B$16 -> 1.75 | F48: 80 | G48: =G47*EXP(($B$17-0.5*$B$15*$B$15)*$B$16+$B$15*SQRT($B$16)*NORMSINV(RAND())) -> 122.9519686 | H48: 0
D49: 2015-08-14 | E49: =E48+$B$16 -> 1.8 | F49: 80 | G49: =G48*EXP(($B$17-0.5*$B$15*$B$15)*$B$16+$B$15*SQRT($B$16)*NORMSINV(RAND())) -> 123.5287109 | H49: 0
D50: 2015-09-14 | E50: =E49+$B$16 -> 1.85 | F50: 80 | G50: =G49*EXP(($B$17-0.5*$B$15*$B$15)*$B$16+$B$15*SQRT($B$16)*NORMSINV(RAND())) -> 121.3710349 | H50: 0
D51: 2015-10-14 | E51: =E50+$B$16 -> 1.9 | F51: 80 | G51: =G50*EXP(($B$17-0.5*$B$15*$B$15)*$B$16+$B$15*SQRT($B$16)*NORMSINV(RAND())) -> 123.6990448 | H51: 4
D52: 2015-11-14 | E52: =E51+$B$16 -> 1.95 | F52: 80 | G52: =G51*EXP(($B$17-0.5*$B$15*$B$15)*$B$16+$B$15*SQRT($B$16)*NORMSINV(RAND())) -> 126.7625457 | H52: 0
D53: 2015-12-14 | E53: =E52+$B$16 -> 2 | F53: 80 | G53: =G52*EXP(($B$17-0.5*$B$15*$B$15)*$B$16+$B$15*SQRT($B$16)*NORMSINV(RAND())) -> 130.3542531 | H53: 0
